[Event "Titled Tuesday Blitz May 24 Early 2022"]
[White "Begunov, Konstantin"]
[Black "Barria Zuniga, Daniel"]
[WhiteFideId "4118510"]
[BlackFideId "3400816"]
[WhiteElo "2262"]
[BlackElo "2414"]
[Result "1-0"]
[Round "01"]
[TimeControl "180+1"]
[Date "2022.05.25"]
[WhiteClock "0:00:16"]
[BlackClock "0:00:02"]

1. d4 {[%clk 0:02:51]}  c5 {[%clk 0:02:49]} 2. dxc5 {[%clk 0:02:49]}  Qa5+ {[%clk 0:02:48]} 3. Nc3 {[%clk 0:02:49]}  Nf6 {[%clk 0:02:47]} 4. Be3 {[%clk 0:02:38]}  Ng4 {[%clk 0:02:38]} 5. Bf4 {[%clk 0:02:24]}  e5 {[%clk 0:02:34]} 6. Bg3 {[%clk 0:02:20]}  Bxc5 {[%clk 0:02:32]} 7. e4 {[%clk 0:02:17]}  d6 {[%clk 0:02:23]} 8. a3 {[%clk 0:02:02]}  Qb6 {[%clk 0:02:20]} 9. Nd5 {[%clk 0:01:45]}  Qd8 {[%clk 0:01:52]} 10. Bb5+ {[%clk 0:01:42]}  Nc6 {[%clk 0:01:50]} 11. b4 {[%clk 0:01:31]}  Bb6 {[%clk 0:01:44]} 12. Nxb6 {[%clk 0:01:28]}  Qxb6 {[%clk 0:01:29]} 13. Qe2 {[%clk 0:01:04]}  a6 {[%clk 0:01:11]} 14. Bc4 {[%clk 0:00:53]}  Nd4 {[%clk 0:00:51]} 15. Qd3 {[%clk 0:00:52]}  O-O {[%clk 0:00:39]} 16. f3 {[%clk 0:00:52]}  Nf6 {[%clk 0:00:38]} 17. Bf2 {[%clk 0:00:52]}  Be6 {[%clk 0:00:37]} 18. Bxe6 {[%clk 0:00:47]}  fxe6 {[%clk 0:00:38]} 19. c3 {[%clk 0:00:46]}  d5 {[%clk 0:00:30]} 20. cxd4 {[%clk 0:00:46]}  dxe4 {[%clk 0:00:30]} 21. fxe4 {[%clk 0:00:43]}  Ng4 {[%clk 0:00:29]} 22. Nf3 {[%clk 0:00:43]}  Nxf2 {[%clk 0:00:22]} 23. Kxf2 {[%clk 0:00:44]}  exd4 {[%clk 0:00:23]} 24. Rhc1 {[%clk 0:00:37]}  e5 {[%clk 0:00:20]} 25. Rc5 {[%clk 0:00:36]}  Rae8 {[%clk 0:00:19]} 26. Kg1 {[%clk 0:00:35]}  Qf6 {[%clk 0:00:16]} 27. Qc4+ {[%clk 0:00:34]}  Kh8 {[%clk 0:00:16]} 28. Rc1 {[%clk 0:00:33]}  Qf4 {[%clk 0:00:16]} 29. Rc8 {[%clk 0:00:28]}  Qe3+ {[%clk 0:00:14]} 30. Kh1 {[%clk 0:00:27]}  h6 {[%clk 0:00:14]} 31. Rxe8 {[%clk 0:00:27]}  Rxe8 {[%clk 0:00:14]} 32. Re1 {[%clk 0:00:24]}  Qf4 {[%clk 0:00:13]} 33. Qd5 {[%clk 0:00:22]}  Rc8 {[%clk 0:00:05]} 34. h3 {[%clk 0:00:21]}  Rc1 {[%clk 0:00:05]} 35. Rxc1 {[%clk 0:00:19]}  Qxc1+ {[%clk 0:00:05]} 36. Kh2 {[%clk 0:00:20]}  Qf4+ {[%clk 0:00:06]} 37. Kg1 {[%clk 0:00:20]}  Qe3+ {[%clk 0:00:05]} 38. Kf1 {[%clk 0:00:20]}  Qc1+ {[%clk 0:00:04]} 39. Ke2 {[%clk 0:00:20]}  Qe3+ {[%clk 0:00:04]} 40. Kd1 {[%clk 0:00:18]}  Qd3+ {[%clk 0:00:04]} 41. Nd2 {[%clk 0:00:19]}  Qxa3 {[%clk 0:00:03]} 42. Qxe5 {[%clk 0:00:18]}  Qxb4 {[%clk 0:00:03]} 43. Qd5 {[%clk 0:00:18]}  a5 {[%clk 0:00:03]} 44. e5 {[%clk 0:00:18]}  a4 {[%clk 0:00:03]} 45. e6 {[%clk 0:00:19]}  a3 {[%clk 0:00:02]} 46. h4 {[%clk 0:00:18]}  Kh7 {[%clk 0:00:02]} 47. h5 {[%clk 0:00:17]}  Qa4+ {[%clk 0:00:02]} 48. Ke2 {[%clk 0:00:17]}  a2 {[%clk 0:00:02]} 49. e7 {[%clk 0:00:16]}  a1=Q {[%clk 0:00:02]} 50. Qe4+ {[%clk 0:00:16]} 1-0


[Site "https://www.chess.com"]

[Event "Titled Tuesday Blitz May 24 Early 2022"]
[White "Bintang, Rasyid A. Hidayat"]
[Black "Petrovskyi, Vadym"]
[WhiteFideId "7105355"]
[BlackFideId "14165210"]
[WhiteElo "2458"]
[BlackElo "2400"]
[Result "0-1"]
[Round "01"]
[TimeControl "180+1"]
[Date "2022.05.25"]
[WhiteClock "0:02:26"]
[BlackClock "0:01:55"]

1. d4 {[%clk 0:02:56]}  Nf6 {[%clk 0:02:59]} 2. Bf4 {[%clk 0:02:55]}  g6 {[%clk 0:02:54]} 3. Nc3 {[%clk 0:02:55]}  d5 {[%clk 0:02:54]} 4. e3 {[%clk 0:02:55]}  Bg7 {[%clk 0:02:53]} 5. h4 {[%clk 0:02:55]}  O-O {[%clk 0:02:53]} 6. h5 {[%clk 0:02:56]}  c5 {[%clk 0:02:50]} 7. hxg6 {[%clk 0:02:56]}  hxg6 {[%clk 0:02:50]} 8. Nf3 {[%clk 0:02:55]}  Nc6 {[%clk 0:02:50]} 9. dxc5 {[%clk 0:02:55]}  Qa5 {[%clk 0:02:48]} 10. Ne5 {[%clk 0:02:48]}  Ne4 {[%clk 0:02:42]} 11. Nxc6 {[%clk 0:02:44]}  bxc6 {[%clk 0:02:43]} 12. Bh6 {[%clk 0:02:31]}  Bxc3+ {[%clk 0:01:58]} 13. bxc3 {[%clk 0:02:28]}  Qxc3+ {[%clk 0:01:59]} 14. Ke2 {[%clk 0:02:28]}  Ba6+ {[%clk 0:01:56]} 15. Kf3 {[%clk 0:02:28]}  Qf6+ {[%clk 0:01:55]} 16. Kg4 {[%clk 0:02:26]}  Bc8# {[%clk 0:01:55]} 0-1


[Site "https://www.chess.com"]

[Event "Titled Tuesday Blitz May 24 Early 2022"]
[White "Boder, Jan"]
[Black "Manukyan, Artyom"]
[WhiteFideId "16243226"]
[BlackFideId "13305786"]
[WhiteElo "2064"]
[BlackElo "2034"]
[Result "1/2-1/2"]
[Round "01"]
[TimeControl "180+1"]
[Date "2022.05.25"]
[WhiteClock "0:00:05"]
[BlackClock "0:00:12"]

1. c4 {[%clk 0:02:59]}  c5 {[%clk 0:02:58]} 2. g3 {[%clk 0:03:00]}  g6 {[%clk 0:02:58]} 3. Bg2 {[%clk 0:03:00]}  Bg7 {[%clk 0:02:59]} 4. Nc3 {[%clk 0:03:00]}  d6 {[%clk 0:02:59]} 5. e4 {[%clk 0:02:59]}  e5 {[%clk 0:03:00]} 6. Nge2 {[%clk 0:02:59]}  Ne7 {[%clk 0:03:00]} 7. O-O {[%clk 0:02:59]}  O-O {[%clk 0:03:01]} 8. d3 {[%clk 0:02:59]}  Nbc6 {[%clk 0:03:01]} 9. a3 {[%clk 0:02:55]}  a5 {[%clk 0:03:01]} 10. h3 {[%clk 0:02:54]}  Be6 {[%clk 0:02:59]} 11. Be3 {[%clk 0:02:52]}  Qd7 {[%clk 0:03:00]} 12. Kh2 {[%clk 0:02:51]}  Nd4 {[%clk 0:02:59]} 13. f4 {[%clk 0:02:44]}  f5 {[%clk 0:02:55]} 14. fxe5 {[%clk 0:02:33]}  Nxe2 {[%clk 0:02:37]} 15. Qxe2 {[%clk 0:02:18]}  Bxe5 {[%clk 0:02:36]} 16. Nd5 {[%clk 0:02:11]}  Rae8 {[%clk 0:02:27]} 17. Bh6 {[%clk 0:02:04]}  Rf7 {[%clk 0:02:24]} 18. Nf4 {[%clk 0:01:47]}  Nc6 {[%clk 0:02:20]} 19. Nxe6 {[%clk 0:01:34]}  Rxe6 {[%clk 0:02:13]} 20. Qf2 {[%clk 0:01:18]}  fxe4 {[%clk 0:01:42]} 21. Qxf7+ {[%clk 0:01:13]}  Qxf7 {[%clk 0:01:43]} 22. Rxf7 {[%clk 0:01:13]}  Kxf7 {[%clk 0:01:44]} 23. Bxe4 {[%clk 0:01:13]}  Rf6 {[%clk 0:01:44]} 24. Kg2 {[%clk 0:01:06]}  Bd4 {[%clk 0:01:40]} 25. Bd5+ {[%clk 0:00:59]}  Ke8 {[%clk 0:01:39]} 26. Re1+ {[%clk 0:00:56]}  Kd7 {[%clk 0:01:38]} 27. Bxc6+ {[%clk 0:00:48]}  bxc6 {[%clk 0:01:26]} 28. Re2 {[%clk 0:00:49]}  a4 {[%clk 0:01:27]} 29. Bg7 {[%clk 0:00:42]}  Re6 {[%clk 0:01:08]} 30. Rxe6 {[%clk 0:00:33]}  Kxe6 {[%clk 0:01:09]} 31. Bxd4 {[%clk 0:00:34]}  cxd4 {[%clk 0:01:09]} 32. Kf3 {[%clk 0:00:33]}  d5 {[%clk 0:01:06]} 33. c5 {[%clk 0:00:20]}  Ke5 {[%clk 0:01:05]} 34. h4 {[%clk 0:00:20]}  h6 {[%clk 0:00:56]} 35. Kg4 {[%clk 0:00:20]}  Kf6 {[%clk 0:00:46]} 36. Kf4 {[%clk 0:00:18]}  g5+ {[%clk 0:00:44]} 37. Kg4 {[%clk 0:00:19]}  Kg6 {[%clk 0:00:42]} 38. Kf3 {[%clk 0:00:13]}  Kf5 {[%clk 0:00:41]} 39. g4+ {[%clk 0:00:09]}  Kf6 {[%clk 0:00:38]} 40. h5 {[%clk 0:00:09]}  Ke5 {[%clk 0:00:30]} 41. Ke2 {[%clk 0:00:10]}  Kf4 {[%clk 0:00:31]} 42. Kd2 {[%clk 0:00:06]}  Kxg4 {[%clk 0:00:31]} 43. b4 {[%clk 0:00:05]}  Kf5 {[%clk 0:00:23]} 44. Ke2 {[%clk 0:00:02]}  Ke5 {[%clk 0:00:14]} 45. Kf3 {[%clk 0:00:02]}  Kf5 {[%clk 0:00:14]} 46. Kg3 {[%clk 0:00:03]}  Ke6 {[%clk 0:00:14]} 47. Kg4 {[%clk 0:00:04]}  Kf6 {[%clk 0:00:13]} 48. Kg3 {[%clk 0:00:04]}  Ke5 {[%clk 0:00:13]} 49. Kf3 {[%clk 0:00:04]}  Kf5 {[%clk 0:00:12]} 50. Kg3 {[%clk 0:00:04]}  Ke6 {[%clk 0:00:04]} 51. Kg4 {[%clk 0:00:05]}  Kf6 {[%clk 0:00:05]} 52. Kg3 {[%clk 0:00:05]}  Ke5 {[%clk 0:00:05]} 53. Kg4 {[%clk 0:00:05]}  Ke6 {[%clk 0:00:05]} 54. Kg3 {[%clk 0:00:05]}  Kf5 {[%clk 0:00:04]} 55. Kf3 {[%clk 0:00:05]}  Ke5 {[%clk 0:00:05]} 56. Kg4 {[%clk 0:00:05]}  Ke6 {[%clk 0:00:05]} 57. Kf3 {[%clk 0:00:05]}  Kd7 {[%clk 0:00:05]} 58. Kg4 {[%clk 0:00:05]}  Kc7 {[%clk 0:00:06]} 59. Kf5 {[%clk 0:00:05]}  Kb7 {[%clk 0:00:06]} 60. Kg4 {[%clk 0:00:02]}  Ka6 {[%clk 0:00:06]} 61. Kf5 {[%clk 0:00:02]}  Kb5 {[%clk 0:00:07]} 62. Kg4 {[%clk 0:00:03]}  Ka6 {[%clk 0:00:08]} 63. Kf5 {[%clk 0:00:03]}  Kb7 {[%clk 0:00:08]} 64. Kg4 {[%clk 0:00:04]}  Kc7 {[%clk 0:00:09]} 65. Kf5 {[%clk 0:00:05]}  Kd7 {[%clk 0:00:10]} 66. Kg4 {[%clk 0:00:05]}  Ke7 {[%clk 0:00:11]} 67. Kf3 {[%clk 0:00:06]}  Kf6 {[%clk 0:00:11]} 68. Kg4 {[%clk 0:00:07]}  Ke5 {[%clk 0:00:12]} 69. Kf3 {[%clk 0:00:05]} 1/2-1/2


[Site "https://www.chess.com"]

[Event "Titled Tuesday Blitz May 24 Early 2022"]
[White "Borgaonkar Akshay"]
[Black "Bharath Subramaniyam H"]
[WhiteFideId "25639110"]
[BlackFideId "46634827"]
[WhiteElo "1639"]
[BlackElo "2242"]
[Result "0-1"]
[Round "01"]
[TimeControl "180+1"]
[Date "2022.05.25"]
[WhiteClock "0:00:01"]
[BlackClock "0:00:35"]

1. e4 {[%clk 0:02:56]}  c5 {[%clk 0:02:59]} 2. Nf3 {[%clk 0:02:55]}  e6 {[%clk 0:02:55]} 3. d4 {[%clk 0:02:55]}  cxd4 {[%clk 0:02:55]} 4. Nxd4 {[%clk 0:02:55]}  a6 {[%clk 0:02:55]} 5. Nc3 {[%clk 0:02:54]}  Qc7 {[%clk 0:02:55]} 6. g3 {[%clk 0:02:54]}  Nf6 {[%clk 0:02:54]} 7. Bg2 {[%clk 0:02:54]}  d6 {[%clk 0:02:55]} 8. O-O {[%clk 0:02:53]}  Nbd7 {[%clk 0:02:55]} 9. f4 {[%clk 0:02:47]}  Rb8 {[%clk 0:02:55]} 10. Be3 {[%clk 0:02:45]}  b5 {[%clk 0:02:54]} 11. a3 {[%clk 0:02:38]}  Bb7 {[%clk 0:02:54]} 12. Re1 {[%clk 0:02:27]}  Be7 {[%clk 0:02:52]} 13. g4 {[%clk 0:02:26]}  h5 {[%clk 0:02:49]} 14. g5 {[%clk 0:02:26]}  Ng4 {[%clk 0:02:49]} 15. Bc1 {[%clk 0:02:20]}  Qb6 {[%clk 0:02:42]} 16. h3 {[%clk 0:02:04]}  Nge5 {[%clk 0:02:35]} 17. Be3 {[%clk 0:01:54]}  Nc4 {[%clk 0:02:31]} 18. Bf2 {[%clk 0:01:53]}  Qc7 {[%clk 0:02:30]} 19. Qc1 {[%clk 0:01:49]}  Rc8 {[%clk 0:02:25]} 20. Nd1 {[%clk 0:01:42]}  Nc5 {[%clk 0:02:18]} 21. b3 {[%clk 0:01:35]}  Nb6 {[%clk 0:02:17]} 22. h4 {[%clk 0:01:22]}  Nd3 {[%clk 0:02:15]} 23. cxd3 {[%clk 0:01:15]}  Qxc1 {[%clk 0:02:14]} 24. Rxc1 {[%clk 0:01:16]}  Rxc1 {[%clk 0:02:15]} 25. Ne2 {[%clk 0:01:16]}  Rc6 {[%clk 0:02:12]} 26. e5 {[%clk 0:01:13]}  d5 {[%clk 0:02:10]} 27. f5 {[%clk 0:01:11]}  Bxa3 {[%clk 0:01:49]} 28. Nd4 {[%clk 0:01:04]}  Nd7 {[%clk 0:01:48]} 29. Nxc6 {[%clk 0:00:58]}  Bxc6 {[%clk 0:01:45]} 30. g6 {[%clk 0:00:59]}  fxg6 {[%clk 0:01:42]} 31. fxe6 {[%clk 0:00:58]}  Nf8 {[%clk 0:01:42]} 32. Bh3 {[%clk 0:00:58]}  Ke7 {[%clk 0:01:39]} 33. Ne3 {[%clk 0:00:56]}  Nxe6 {[%clk 0:01:39]} 34. Ra1 {[%clk 0:00:56]}  b4 {[%clk 0:01:27]} 35. Nc2 {[%clk 0:00:55]}  Nf4 {[%clk 0:01:27]} 36. Bf1 {[%clk 0:00:53]}  Bb5 {[%clk 0:01:27]} 37. Bc5+ {[%clk 0:00:44]}  Ke6 {[%clk 0:01:21]} 38. Nd4+ {[%clk 0:00:35]}  Kxe5 {[%clk 0:01:20]} 39. Re1+ {[%clk 0:00:34]}  Kf6 {[%clk 0:01:21]} 40. Bd6 {[%clk 0:00:26]}  g5 {[%clk 0:00:44]} 41. hxg5+ {[%clk 0:00:22]}  Kxg5 {[%clk 0:00:44]} 42. Nf3+ {[%clk 0:00:12]}  Kg4 {[%clk 0:00:44]} 43. Kf2 {[%clk 0:00:11]}  Bb2 {[%clk 0:00:39]} 44. Be2 {[%clk 0:00:02]}  Nxe2 {[%clk 0:00:38]} 45. Rxe2 {[%clk 0:00:03]}  Bf6 {[%clk 0:00:36]} 46. Ne5+ {[%clk 0:00:03]}  Kf5 {[%clk 0:00:36]} 47. Nf3 {[%clk 0:00:02]}  Bxd3 {[%clk 0:00:36]} 48. Rd2 {[%clk 0:00:01]}  Be4 {[%clk 0:00:36]} 49. Bxb4 {[%clk 0:00:02]}  Rb8 {[%clk 0:00:35]} 50. Bd6 {[%clk 0:00:01]}  Rxb3 {[%clk 0:00:35]} 0-1


[Site "https://www.chess.com"]

[Event "Titled Tuesday Blitz May 24 Early 2022"]
[White "Bortnyk, Olexandr"]
[Black "Gil Alba, Hector Luis"]
[WhiteFideId "14120828"]
[BlackFideId "3504670"]
[WhiteElo "2723"]
[BlackElo "2331"]
[Result "1-0"]
[Round "01"]
[TimeControl "180+1"]
[Date "2022.05.24"]
[WhiteClock "0:00:04"]
[BlackClock "0:00:09"]

1. e4 {[%clk 0:02:59]}  e5 {[%clk 0:02:55]} 2. Bc4 {[%clk 0:02:58]}  Nf6 {[%clk 0:02:53]} 3. d3 {[%clk 0:02:58]}  c6 {[%clk 0:02:52]} 4. Nf3 {[%clk 0:02:58]}  d5 {[%clk 0:02:51]} 5. Bb3 {[%clk 0:02:58]}  Bd6 {[%clk 0:02:51]} 6. Nc3 {[%clk 0:02:55]}  Be6 {[%clk 0:02:49]} 7. Ng5 {[%clk 0:02:56]}  O-O {[%clk 0:02:47]} 8. Nxe6 {[%clk 0:02:55]}  fxe6 {[%clk 0:02:47]} 9. O-O {[%clk 0:02:54]}  Nbd7 {[%clk 0:02:47]} 10. f3 {[%clk 0:02:34]}  Bc5+ {[%clk 0:02:39]} 11. Kh1 {[%clk 0:02:34]}  Nh5 {[%clk 0:02:39]} 12. Ne2 {[%clk 0:02:31]}  Nhf6 {[%clk 0:02:33]} 13. Ng3 {[%clk 0:02:29]}  Qe8 {[%clk 0:02:28]} 14. c3 {[%clk 0:02:26]}  Nh5 {[%clk 0:02:26]} 15. Nxh5 {[%clk 0:02:22]}  Qxh5 {[%clk 0:02:24]} 16. Qe1 {[%clk 0:02:22]}  Bd6 {[%clk 0:02:16]} 17. Qg3 {[%clk 0:02:19]}  Rf6 {[%clk 0:02:10]} 18. Qg5 {[%clk 0:02:15]}  Qf7 {[%clk 0:02:07]} 19. Be3 {[%clk 0:02:14]}  Rg6 {[%clk 0:02:07]} 20. Qh5 {[%clk 0:02:08]}  Nf6 {[%clk 0:01:56]} 21. Qh3 {[%clk 0:02:07]}  Rf8 {[%clk 0:01:52]} 22. a4 {[%clk 0:02:03]}  a6 {[%clk 0:01:42]} 23. Rae1 {[%clk 0:02:01]}  Kh8 {[%clk 0:01:38]} 24. g3 {[%clk 0:01:54]}  Qe7 {[%clk 0:01:37]} 25. Qh4 {[%clk 0:01:46]}  Bc5 {[%clk 0:01:35]} 26. Bxc5 {[%clk 0:01:42]}  Qxc5 {[%clk 0:01:34]} 27. exd5 {[%clk 0:01:43]}  exd5 {[%clk 0:01:26]} 28. Rxe5 {[%clk 0:01:42]}  Rh6 {[%clk 0:01:25]} 29. Qb4 {[%clk 0:01:39]}  Qxb4 {[%clk 0:01:08]} 30. cxb4 {[%clk 0:01:40]}  Ng4 {[%clk 0:01:05]} 31. Re2 {[%clk 0:01:33]}  d4 {[%clk 0:01:05]} 32. Rc1 {[%clk 0:01:15]}  Ne3 {[%clk 0:01:02]} 33. f4 {[%clk 0:01:15]}  Rhf6 {[%clk 0:00:59]} 34. Rc5 {[%clk 0:01:13]}  h6 {[%clk 0:00:58]} 35. h3 {[%clk 0:00:30]}  g5 {[%clk 0:00:55]} 36. Rf2 {[%clk 0:00:09]}  gxf4 {[%clk 0:00:54]} 37. g4 {[%clk 0:00:09]}  f3 {[%clk 0:00:53]} 38. Re5 {[%clk 0:00:09]}  Rg6 {[%clk 0:00:47]} 39. Re4 {[%clk 0:00:06]}  Rd6 {[%clk 0:00:44]} 40. Kh2 {[%clk 0:00:05]}  b5 {[%clk 0:00:38]} 41. axb5 {[%clk 0:00:06]}  cxb5 {[%clk 0:00:36]} 42. Kg3 {[%clk 0:00:07]}  Rdf6 {[%clk 0:00:35]} 43. Rxd4 {[%clk 0:00:06]}  Rg6 {[%clk 0:00:27]} 44. Re4 {[%clk 0:00:06]}  Nf5+ {[%clk 0:00:25]} 45. Kxf3 {[%clk 0:00:07]}  Nd6+ {[%clk 0:00:25]} 46. Ke3 {[%clk 0:00:05]}  Rxf2 {[%clk 0:00:23]} 47. Kxf2 {[%clk 0:00:05]}  Nxe4+ {[%clk 0:00:23]} 48. dxe4 {[%clk 0:00:06]}  Rd6 {[%clk 0:00:22]} 49. Ke3 {[%clk 0:00:06]}  Kg7 {[%clk 0:00:21]} 50. Bd5 {[%clk 0:00:06]}  Kf6 {[%clk 0:00:21]} 51. Kd4 {[%clk 0:00:04]}  Rd8 {[%clk 0:00:20]} 52. Kc5 {[%clk 0:00:04]}  Ke5 {[%clk 0:00:20]} 53. Kb6 {[%clk 0:00:04]}  Rd6+ {[%clk 0:00:20]} 54. Ka5 {[%clk 0:00:04]}  Rf6 {[%clk 0:00:20]} 55. h4 {[%clk 0:00:04]}  Rf2 {[%clk 0:00:19]} 56. Kxa6 {[%clk 0:00:03]}  Rxb2 {[%clk 0:00:19]} 57. Kxb5 {[%clk 0:00:04]}  Rg2 {[%clk 0:00:19]} 58. g5 {[%clk 0:00:04]}  hxg5 {[%clk 0:00:18]} 59. hxg5 {[%clk 0:00:05]}  Rxg5 {[%clk 0:00:19]} 60. Kc5 {[%clk 0:00:06]}  Rg1 {[%clk 0:00:18]} 61. b5 {[%clk 0:00:07]}  Rc1+ {[%clk 0:00:16]} 62. Kb6 {[%clk 0:00:04]}  Kd6 {[%clk 0:00:15]} 63. Bc6 {[%clk 0:00:04]}  Rb1 {[%clk 0:00:14]} 64. Kb7 {[%clk 0:00:04]}  Kc5 {[%clk 0:00:13]} 65. Kc7 {[%clk 0:00:04]}  Kd4 {[%clk 0:00:11]} 66. b6 {[%clk 0:00:03]}  Kc5 {[%clk 0:00:09]} 67. b7 {[%clk 0:00:04]} 1-0


[Site "https://www.chess.com"]

[Event "Titled Tuesday Blitz May 24 Early 2022"]
[White "Brashaw, Daniel"]
[Black "Matlakov, Maxim"]
[WhiteFideId "2038862"]
[BlackFideId "4168003"]
[WhiteElo "2145"]
[BlackElo "2669"]
[Result "0-1"]
[Round "01"]
[TimeControl "180+1"]
[Date "2022.05.24"]
[WhiteClock "0:01:46"]
[BlackClock "0:01:38"]

1. e4 {[%clk 0:03:00]}  e6 {[%clk 0:02:59]} 2. d4 {[%clk 0:03:01]}  d5 {[%clk 0:02:59]} 3. Nc3 {[%clk 0:03:01]}  Nf6 {[%clk 0:02:58]} 4. Bg5 {[%clk 0:02:59]}  dxe4 {[%clk 0:02:55]} 5. Nxe4 {[%clk 0:02:59]}  Be7 {[%clk 0:02:55]} 6. Bxf6 {[%clk 0:02:59]}  Bxf6 {[%clk 0:02:55]} 7. Nf3 {[%clk 0:02:58]}  O-O {[%clk 0:02:55]} 8. g3 {[%clk 0:02:53]}  b6 {[%clk 0:02:42]} 9. Bg2 {[%clk 0:02:52]}  Bb7 {[%clk 0:02:42]} 10. Qd3 {[%clk 0:02:41]}  Nd7 {[%clk 0:02:31]} 11. O-O-O {[%clk 0:02:35]}  c5 {[%clk 0:02:24]} 12. Nxf6+ {[%clk 0:02:32]}  Qxf6 {[%clk 0:02:21]} 13. Kb1 {[%clk 0:02:17]}  Rfd8 {[%clk 0:02:13]} 14. Qe2 {[%clk 0:01:43]}  cxd4 {[%clk 0:02:02]} 15. Rxd4 {[%clk 0:01:44]}  Bxf3 {[%clk 0:01:41]} 16. Bxf3 {[%clk 0:01:45]}  Qxd4 {[%clk 0:01:40]} 17. Bxa8 {[%clk 0:01:45]}  Rxa8 {[%clk 0:01:39]} 18. Rd1 {[%clk 0:01:46]}  Qe5 {[%clk 0:01:38]} 0-1


[Site "https://www.chess.com"]

[Event "Titled Tuesday Blitz May 24 Early 2022"]
[White "Bryakin, Mikhail"]
[Black "Przybylski, Wojciech"]
[WhiteFideId "4165314"]
[BlackFideId "1117599"]
[WhiteElo "2417"]
[BlackElo "2133"]
[Result "0-1"]
[Round "01"]
[TimeControl "180+1"]
[Date "2022.05.25"]
[WhiteClock "0:00:11"]
[BlackClock "0:01:03"]

1. e4 {[%clk 0:02:50]}  e5 {[%clk 0:02:56]} 2. d4 {[%clk 0:02:42]}  exd4 {[%clk 0:02:56]} 3. Qxd4 {[%clk 0:02:42]}  Nc6 {[%clk 0:02:55]} 4. Qd3 {[%clk 0:02:42]}  Bc5 {[%clk 0:02:47]} 5. Nc3 {[%clk 0:02:35]}  Nge7 {[%clk 0:02:45]} 6. Bf4 {[%clk 0:02:27]}  d6 {[%clk 0:02:44]} 7. f3 {[%clk 0:02:20]}  O-O {[%clk 0:02:42]} 8. O-O-O {[%clk 0:02:20]}  Be6 {[%clk 0:02:40]} 9. a3 {[%clk 0:02:19]}  a6 {[%clk 0:02:37]} 10. g4 {[%clk 0:02:19]}  b5 {[%clk 0:02:36]} 11. Nd5 {[%clk 0:02:19]}  b4 {[%clk 0:02:29]} 12. a4 {[%clk 0:02:18]}  Ne5 {[%clk 0:02:20]} 13. Qe2 {[%clk 0:02:05]}  Nxd5 {[%clk 0:02:07]} 14. exd5 {[%clk 0:02:06]}  Bd7 {[%clk 0:02:07]} 15. Bxe5 {[%clk 0:02:02]}  dxe5 {[%clk 0:01:58]} 16. b3 {[%clk 0:02:03]}  Qg5+ {[%clk 0:01:54]} 17. Kb1 {[%clk 0:02:02]}  Bd4 {[%clk 0:01:39]} 18. h4 {[%clk 0:02:01]}  Qf6 {[%clk 0:01:37]} 19. g5 {[%clk 0:02:01]}  Qb6 {[%clk 0:01:36]} 20. Bh3 {[%clk 0:02:01]}  Bb5 {[%clk 0:01:33]} 21. Qe4 {[%clk 0:01:50]}  Qc5 {[%clk 0:01:28]} 22. Qe1 {[%clk 0:00:56]}  Bxa4 {[%clk 0:01:18]} 23. bxa4 {[%clk 0:00:53]}  b3 {[%clk 0:01:18]} 24. c3 {[%clk 0:00:39]}  Bxc3 {[%clk 0:01:13]} 25. Rc1 {[%clk 0:00:13]}  Qa3 {[%clk 0:01:12]} 26. Rxc3 {[%clk 0:00:09]}  Qa2+ {[%clk 0:01:09]} 27. Kc1 {[%clk 0:00:10]}  b2+ {[%clk 0:01:05]} 28. Kd1 {[%clk 0:00:10]}  b1=Q+ {[%clk 0:01:03]} 29. Rc1 {[%clk 0:00:11]}  Qd3+ {[%clk 0:01:03]} 0-1


[Site "https://www.chess.com"]

[Event "Titled Tuesday Blitz May 24 Early 2022"]
[White "D`Arruda, Ricardo D."]
[Black "Pranav, V"]
[WhiteFideId "100692"]
[BlackFideId "25060783"]
[WhiteElo "2506"]
[BlackElo "2349"]
[Result "0-1"]
[Round "01"]
[TimeControl "180+1"]
[Date "2022.05.24"]
[WhiteClock "0:01:28"]
[BlackClock "0:01:35"]

1. Nf3 {[%clk 0:02:56]}  Nf6 {[%clk 0:02:54]} 2. d4 {[%clk 0:02:56]}  e6 {[%clk 0:02:53]} 3. Nc3 {[%clk 0:02:55]}  d5 {[%clk 0:02:49]} 4. Bg5 {[%clk 0:02:55]}  h6 {[%clk 0:02:49]} 5. Bxf6 {[%clk 0:02:54]}  gxf6 {[%clk 0:02:50]} 6. e3 {[%clk 0:02:53]}  f5 {[%clk 0:02:48]} 7. Ne2 {[%clk 0:02:52]}  Nd7 {[%clk 0:02:48]} 8. g3 {[%clk 0:02:51]}  c6 {[%clk 0:02:48]} 9. Bg2 {[%clk 0:02:50]}  h5 {[%clk 0:02:49]} 10. Nf4 {[%clk 0:02:49]}  Nf6 {[%clk 0:02:48]} 11. c3 {[%clk 0:02:46]}  b6 {[%clk 0:02:44]} 12. Qc2 {[%clk 0:02:46]}  Ba6 {[%clk 0:02:43]} 13. O-O-O {[%clk 0:02:44]}  Bd6 {[%clk 0:02:42]} 14. Ne5 {[%clk 0:02:35]}  Bxe5 {[%clk 0:02:39]} 15. dxe5 {[%clk 0:02:36]}  Ng4 {[%clk 0:02:40]} 16. e4 {[%clk 0:02:26]}  fxe4 {[%clk 0:02:35]} 17. Bxe4 {[%clk 0:02:26]}  Qg5 {[%clk 0:02:32]} 18. Bg2 {[%clk 0:02:18]}  Nxe5 {[%clk 0:02:21]} 19. Rhe1 {[%clk 0:02:18]}  Ng6 {[%clk 0:02:16]} 20. Bxd5 {[%clk 0:02:01]}  Nxf4 {[%clk 0:02:06]} 21. Bxc6+ {[%clk 0:02:01]}  Ke7 {[%clk 0:02:06]} 22. gxf4 {[%clk 0:01:54]}  Qxf4+ {[%clk 0:02:06]} 23. Kb1 {[%clk 0:01:54]}  Rad8 {[%clk 0:02:05]} 24. Qa4 {[%clk 0:01:37]}  Qxa4 {[%clk 0:01:42]} 25. Bxa4 {[%clk 0:01:38]}  Rhg8 {[%clk 0:01:41]} 26. Bc6 {[%clk 0:01:34]}  h4 {[%clk 0:01:36]} 27. h3 {[%clk 0:01:31]}  Bd3+ {[%clk 0:01:35]} 28. Kc1 {[%clk 0:01:30]}  Bf5 {[%clk 0:01:36]} 29. Bg2 {[%clk 0:01:28]}  Rxg2 {[%clk 0:01:35]} 0-1


[Site "https://www.chess.com"]